bitfinex/quotes_ETHUSD_20240614
["timestamp","ask_amount","ask_price","bid_price","bid_amount"]
[1718394011536,0.00526776,3396.1,3395.6,2.94493]
[1718394011707,0.00526776,3396.1,3395.9,2.94464]
[1718394012356,0.00526776,3396.1,3396.0,2.94464]
[1718394012519,0.00526776,3396.1,3396.0,8.83392]
[1718394015655,0.00526776,3396.1,3396.0,13.54756]
[1718394015953,0.00526776,3396.1,3396.0,23.16592114]
[1718394016748,0.00526776,3396.1,3396.0,26.11056114]
[1718394016953,0.00526776,3396.1,3396.0,29.11056114]
[1718394017316,8.69691,3398.0,3397.4,2.94338]
[1718394017584,10.13035514,3398.0,3397.4,2.94335]
[1718394017760,10.13035514,3398.0,3397.5,2.94333]
[1718394017959,10.13035514,3398.0,3397.3,2.9435]
[1718394017960,10.13035514,3398.0,3397.4,2.9434]
[1718394018333,3.0,3397.9,3397.4,2.94341]
[1718394018545,2.94266,3398.3,3397.6,2.94323]
[1718394018873,2.94274,3398.2,3397.6,2.94323]
[1718394019742,2.94265,3398.3,3397.8,2.94307]
[1718394019951,3.0,3398.2,3397.7,2.94314]
[1718394020356,5.94278,3398.2,3397.6,2.94325]
[1718394020664,2.94342,3397.5,3396.9,2.94384]
[1718394020830,6.2689,3397.8,3396.9,2.94384]
[1718394020831,2.94331,3397.6,3396.9,2.94384]
[1718394021358,2.94351,3397.3,3396.6,2.94411]
[1718394021660,4.37679514,3397.5,3396.4,2.94426]
[1718394021661,2.9437,3397.1,3396.4,2.94426]
[1718394021833,2.9437,3397.1,3396.5,2.94413]
[1718394022382,2.94361,3397.2,3396.5,2.9442]
[1718394022677,2.94352,3397.3,3396.8,2.94394]
[1718394025479,3.0,3397.5,3397.0,2.9437]
[1718394025681,3.0,3397.6,3397.0,2.9437]
[1718394026174,3.0,3397.6,3397.1,2.94366]
[1718394026567,5.8279,3398.1,3397.2,0.05887325]
[1718394026894,3.0,3398.0,3397.5,2.94327]
[1718394027042,5.94291,3398.0,3397.4,2.9434]
[1718394028079,5.94291,3398.0,3397.5,2.94332]
[1718394028860,3.0,3398.0,3397.5,2.94332]
[1718394029442,3.0,3398.0,3397.4,2.94341]
[1718394029443,5.94291,3398.0,3397.4,2.9434]
[1718394030403,2.94308,3397.8,3397.0,1.769]
[1718394030679,2.94308,3397.8,3397.2,2.94358]
[1718394030883,2.943,3397.9,3397.3,2.94348]
[1718394031888,0.05375456,3397.8,3397.3,2.94348]
[1718394032388,2.99687456,3397.8,3397.2,2.94358]
[1718394032891,0.05375456,3397.8,3397.3,2.94348]
[1718394033582,2.99683456,3397.8,3397.3,2.94348]
[1718394034448,2.99683456,3397.8,3397.2,2.94358]
[1718394034449,0.05375456,3397.8,3397.2,2.94358]
[1718394034649,2.94309,3397.8,3397.2,2.94358]
[1718394034879,2.94299,3397.9,3397.2,2.94358]
[1718394035180,0.0537475,3397.8,3397.2,2.94358]
[1718394035385,2.94317,3397.7,3397.2,2.94358]
[1718394035562,0.05333531,3397.7,3397.2,2.94358]
[1718394035883,0.05333531,3397.7,3397.3,2.94351]
[1718394036248,2.9431,3397.8,3397.3,2.94351]
[1718394036451,0.05332467,3397.6,3397.3,2.94351]
[1718394036643,0.05331481,3397.7,3397.3,2.94351]
[1718394036843,0.05325256,3397.5,3397.3,2.94351]
[1718394037091,2.9431,3397.8,3397.3,3.709129]
[1718394037254,0.0533034,3397.4,3397.3,3.709129]
[1718394037460,2.9431,3397.8,3397.3,3.709129]
[1718394037645,0.05316553,3397.4,3397.3,2.94351]
[1718394037852,2.9431,3397.8,3397.3,2.94351]
[1718394038465,2.9431,3397.8,3396.6,2.125]
[1718394038466,2.94334,3397.5,3396.8,2.652217]
[1718394038669,2.94299,3397.9,3396.5,2.9442]
[1718394038670,2.9436,3397.2,3396.5,2.9442]
[1718394038870,2.9436,3397.2,3396.3,2.94433]
[1718394038871,2.94393,3396.9,3396.3,2.94433]
[1718394039056,0.05392191,3396.8,3396.3,2.94433]
[1718394039248,0.05392191,3396.8,3396.4,2.94427]
[1718394040889,0.0539083,3396.7,3396.4,2.94427]
[1718394041263,0.05387715,3396.6,3396.4,2.94427]
[1718394041670,0.05387715,3396.6,3396.5,2.9442]
[1718394042299,2.94379,3397.0,3396.5,2.9442]
[1718394042824,0.05269454,3396.9,3396.5,2.9442]
[1718394043375,0.05269454,3396.9,3396.4,2.94427]
[1718394043687,2.99656454,3396.9,3396.4,2.94427]
[1718394043987,2.99656454,3396.9,3395.2,3.70887281]
[1718394043988,0.05269454,3396.9,3396.1,2.94454]
[1718394044394,2.94404,3396.7,3396.2,2.94444]
[1718394044885,0.05249192,3396.6,3396.2,2.94444]
[1718394046666,0.05249192,3396.6,3396.1,2.94454]
[1718394046996,2.94396,3396.8,3396.3,2.94437]
[1718394047198,2.125,3397.7,3396.3,1.43344514]
[1718394047357,0.22988338,3398.5,3397.6,4.7122]
[1718394047358,0.50901136,3398.5,3397.6,4.7122]
[1718394047689,2.94251,3398.5,3397.9,2.94298]
[1718394048559,2.94239,3398.6,3398.0,2.94288]
[1718394048792,4.37583514,3398.6,3398.0,5.88576]
[1718394049289,4.37583514,3398.6,3398.1,2.94279]
[1718394049491,2.94221,3398.8,3398.2,2.94272]
[1718394049693,4.37565514,3398.8,3398.2,2.94272]
[1718394050191,3.0,3398.7,3398.2,2.94272]
[1718394050392,4.37565514,3398.8,3398.2,2.94272]
[1718394051102,0.55,3398.7,3398.2,2.94272]
[1718394051261,2.94199,3399.1,3398.2,2.94272]
[1718394051262,6.0299,3399.6,3398.3,2.94256]
[1718394051462,2.94211,3399.0,3398.5,2.94246]
[1718394051766,2.94188,3399.2,3398.4,2.94255]
[1718394052064,4.37532514,3399.2,3398.4,2.94255]
[1718394052466,4.37532514,3399.2,3398.1,1.769]
[1718394052467,4.37532514,3399.2,3398.6,2.94235]
[1718394053010,0.55,3399.1,3398.6,2.94235]
[1718394053217,3.55,3399.1,3398.6,2.94235]
[1718394055191,6.49196,3399.1,3398.6,2.94235]
[1718394055382,4.37548514,3399.0,3398.4,2.94255]
[1718394055582,6.1863,3398.9,3398.4,2.94255]
[1718394056185,9.12843,3398.9,3398.3,2.94263]
[1718394057385,2.94221,3398.8,3398.3,2.94263]
[1718394057625,2.98464485,3398.8,3398.3,2.94263]
[1718394060323,0.04243485,3398.8,3398.4,2.94254]
[1718394063519,0.04243485,3398.8,3398.5,2.94244]
[1718394063908,0.04243485,3398.8,3398.4,2.94254]
[1718394064095,3.0,3399.0,3398.7,2.9423]
[1718394064613,0.04259312,3398.9,3398.6,2.94237]
[1718394064790,0.04259312,3398.9,3398.5,2.94246]
[1718394064791,6.49187,3399.2,3398.7,2.94229]
[1718394064993,0.04251792,3398.8,3398.7,2.94229]
[1718394065299,7.92531514,3399.2,3398.7,2.94229]
[1718394065499,0.04253406,3398.8,3398.7,5.88459]
[1718394065825,3.0,3399.2,3398.8,2.94213]
[1718394066835,3.0,3399.2,3398.9,2.94211]
[1718394069348,3.0,3399.2,3398.8,2.94219]
[1718394069703,2.94203,3399.1,3398.5,2.94245]
[1718394070013,2.94198,3399.1,3398.6,2.94238]
[1718394071633,2.94198,3399.1,3398.4,2.94255]
[1718394071634,2.94204,3399.0,3398.5,2.94245]
[1718394072625,0.04256826,3398.9,3398.5,2.94245]
[1718394080229,2.98472826,3398.9,3398.4,2.94255]
[1718394081316,0.04256826,3398.9,3398.4,2.94255]
[1718394081515,0.04256826,3398.9,3397.8,7.31]
[1718394081853,2.94253,3398.5,3397.9,2.94297]
[1718394082227,0.0425697,3398.4,3397.9,2.94297]
[1718394083154,0.0425697,3398.4,3398.0,2.94288]
[1718394083514,2.9424,3398.6,3398.0,2.94288]
[1718394083759,0.04234378,3398.3,3398.0,2.94288]
[1718394083910,0.5088378,3398.7,3398.3,2.94264]
[1718394084118,3.0,3398.7,3398.3,2.94264]
[1718394084436,3.0,3398.8,3398.3,2.94264]
[1718394086356,3.0,3398.8,3398.4,2.94254]
[1718394086661,15.47751,3399.7,3398.7,2.9423]
[1718394086662,5.9705,3399.4,3398.7,2.9423]
[1718394086847,5.9705,3399.4,3398.8,2.94214]
[1718394086848,2.94178,3399.3,3398.8,2.94214]
[1718394087045,3.45052774,3399.3,3398.7,2.94228]
[1718394087245,2.94178,3399.3,3398.7,2.94228]
[1718394087635,0.04331927,3399.2,3398.7,2.94228]
[1718394088275,2.98518927,3399.2,3398.7,2.94228]
[1718394088423,3.0,3399.1,3398.7,2.94228]
[1718394088753,3.04323955,3399.1,3398.7,2.94228]
[1718394088973,0.04323955,3399.1,3398.7,2.94228]
[1718394090255,0.04323955,3399.1,3398.6,2.94236]
[1718394090645,2.98519955,3399.1,3398.5,2.94245]
[1718394091631,2.94219,3398.9,3398.3,2.94262]
[1718394092034,2.98548646,3398.8,3398.3,2.94262]
[1718394092234,2.98548646,3398.8,3398.0,5.20912644]
[1718394092235,2.94236,3398.7,3398.0,5.20912644]
[1718394092447,2.94258,3398.4,3397.9,2.94299]
[1718394092671,2.9425,3398.5,3398.0,2.9429]
[1718394092890,0.04309533,3398.3,3398.0,2.9429]
[1718394093040,2.9425,3398.5,3398.0,2.9429]
[1718394093248,0.04288934,3398.2,3398.0,2.9429]
[1718394093481,2.9425,3398.5,3398.0,2.9429]
[1718394093681,0.04285821,3398.1,3398.0,2.9429]
[1718394093893,2.9425,3398.5,3398.0,2.9429]
[1718394094182,0.04280025,3398.1,3398.0,2.9429]
[1718394094392,2.9425,3398.5,3398.0,2.9429]
[1718394094568,0.04267752,3398.1,3398.0,2.9429]
[1718394095082,0.04268434,3398.1,3398.0,2.9429]
[1718394095282,2.9425,3398.5,3398.0,2.9429]
[1718394095445,0.04268434,3398.1,3398.0,2.9429]
[1718394095744,2.9425,3398.5,3398.0,2.9429]
[1718394096174,0.04276639,3398.4,3398.0,2.9429]
[1718394096578,2.98538639,3398.4,3397.8,2.94305]
[1718394097379,2.94265,3398.3,3397.8,2.94305]
[1718394097772,0.04270073,3398.2,3397.8,2.94305]
[1718394098282,0.04270073,3398.2,3397.6,4.71225]
[1718394098283,2.98545073,3398.2,3397.6,2.94319]
[1718394098580,2.98545073,3398.2,3397.7,2.94316]
[1718394099175,7.82604514,3398.1,3396.9,13.132]
[1718394099378,2.94322,3397.7,3397.0,2.9437]
[1718394099571,0.04275643,3397.6,3397.1,2.94368]
[1718394100490,0.04275643,3397.6,3397.5,5.88668]
[1718394100706,2.94282,3398.1,3397.5,2.94334]
[1718394100851,5.88572,3398.1,3397.5,2.94334]
[1718394101053,0.04127239,3398.0,3397.5,2.94334]
[1718394101283,2.98417239,3398.0,3397.5,2.94334]
[1718394101592,2.98417239,3398.0,3397.4,2.94341]
[1718394101805,2.94301,3397.9,3397.5,0.0588604]
[1718394102105,2.94327,3397.6,3396.9,11.1811682]
[1718394102395,0.04113404,3397.5,3397.1,2.94361]
[1718394102608,2.94319,3397.7,3397.1,2.94361]
[1718394102763,0.0411202,3397.4,3397.2,2.94359]
[1718394102946,2.9431,3397.8,3397.2,2.94359]
[1718394103151,0.0411963,3397.7,3397.2,2.94359]
[1718394103370,0.0411963,3397.7,3397.2,4.64517428]
[1718394105766,2.9843663,3397.7,3397.2,4.64517428]
[1718394108592,2.9843663,3397.7,3397.2,2.94359]
[1718394109693,2.9843663,3397.7,3397.0,4.35625282]
[1718394109694,2.94325,3397.6,3397.1,2.94366]
[1718394109902,2.98421056,3397.6,3397.1,2.94366]
[1718394110810,0.04096056,3397.6,3397.1,2.94366]
[1718394111013,0.04096056,3397.6,3397.5,2.94334]
[1718394111311,3.21795057,3398.2,3397.6,6.4436]
[1718394111503,0.21795057,3398.2,3397.7,6.83709]
[1718394111722,0.21795057,3398.2,3398.0,2.94283]
[1718394111723,0.0410257,3398.1,3398.0,2.94283]
[1718394115833,0.0410257,3398.1,3398.0,5.88573]
[1718394119914,0.0410257,3398.1,3398.0,2.94283]
[1718394121134,0.0410257,3398.1,3398.0,3.82683]
[1718394123529,0.0410257,3398.1,3398.0,4.46461189]
[1718394124134,0.0410257,3398.1,3398.0,12.11941189]
[1718394124332,0.0410257,3398.1,3398.0,17.95721189]
[1718394124540,5.939,3399.2,3398.7,2.94229]
[1718394124704,5.939,3399.2,3398.8,0.884]
[1718394124907,0.04184545,3399.1,3398.6,2.94236]
[1718394125499,4.41729059,3399.1,3398.2,2.94272]
[1718394125703,4.41729059,3399.1,3397.9,10.25294]
[1718394125704,2.94222,3398.8,3398.3,2.94264]
[1718394125904,2.94215,3398.9,3398.3,2.94264]
[1718394126207,0.04043915,3398.8,3398.3,2.94264]
[1718394126634,0.04043915,3398.8,3398.2,1.769]
[1718394126836,5.939,3399.2,3398.7,2.9423]
[1718394127836,8.88088,3399.2,3398.7,2.9423]
[1718394129635,5.939,3399.2,3398.8,2.94219]
[1718394132165,8.88086,3399.2,3398.7,2.94227]
[1718394132538,0.03484354,3399.1,3398.7,2.94227]
[1718394135547,0.03484354,3399.1,3398.8,2.9422]
[1718394137365,0.03484354,3399.1,3398.7,2.94229]
[1718394142752,2.97680354,3399.1,3398.6,2.94237]
[1718394144374,2.94226,3398.8,3398.3,2.94259]
[1718394144531,2.94253,3398.5,3397.9,10.25298]
[1718394144734,2.94253,3398.5,3397.4,12.49]
[1718394144735,2.94271,3398.3,3397.4,9.38788]
[1718394144999,2.94271,3398.3,3397.7,2.94309]
[1718394145267,2.97609058,3398.2,3397.2,4.64515328]
[1718394145482,2.94284,3398.1,3397.5,2.94332]
[1718394145660,2.97619536,3398.1,3397.5,2.94332]
[1718394147262,2.97619536,3398.1,3397.6,0.884]
[1718394149456,0.03335536,3398.1,3398.0,0.884]
[1718394149659,3.0,3398.4,3398.0,0.884]
[1718394149870,0.0316442,3398.1,3398.0,0.884]
[1718394150069,3.0,3398.4,3398.0,0.884]
[1718394150275,3.0,3398.4,3397.7,2.94313]
[1718394150276,0.03166149,3398.1,3397.7,2.94313]
[1718394150492,3.0,3398.2,3397.7,3.82713]
[1718394150706,0.0316647,3398.0,3397.7,3.82713]
[1718394150908,3.0,3398.2,3397.7,3.82713]
[1718394151073,0.03172002,3397.9,3397.7,3.82713]
[1718394151410,3.0,3398.2,3397.7,3.82713]
[1718394151570,0.03170618,3397.8,3397.7,3.82713]
[1718394151769,3.0,3398.2,3397.7,3.82713]
[1718394152285,0.03174769,3398.1,3397.7,3.82713]
[1718394153415,2.97458769,3398.1,3397.5,9.35702]
[1718394153708,2.97458769,3398.1,3397.8,0.884]
[1718394154686,2.94291,3398.0,3397.8,0.884]
[1718394154887,2.94299,3397.9,3397.4,2.94341]
[1718394155090,2.9747273,3397.9,3397.6,0.884]
[1718394155388,0.0317373,3397.9,3397.2,2.94358]
[1718394155588,2.9431,3397.8,3397.5,0.884]
[1718394155979,0.03165459,3397.7,3397.5,0.884]
[1718394156312,2.9431,3397.8,3397.5,0.884]
[1718394156515,0.03161297,3397.6,3397.5,0.884]
[1718394156712,2.9431,3397.8,3397.5,0.884]
[1718394157019,0.03161297,3397.6,3397.5,0.884]
[1718394157479,2.9431,3397.8,3397.5,0.884]
[1718394157790,0.03160614,3397.6,3397.5,0.884]
[1718394157995,2.9431,3397.8,3397.5,0.884]
[1718394158196,0.03157157,3397.6,3397.5,0.884]
[1718394158423,2.9431,3397.8,3397.5,0.884]
[1718394159025,0.03161999,3397.7,3397.5,0.884]
[1718394159395,2.94301,3397.9,3397.5,0.884]
[1718394159608,0.03158886,3397.6,3397.5,0.884]
[1718394159779,2.94301,3397.9,3397.5,0.884]
[1718394159981,0.03155475,3397.6,3397.5,0.884]
[1718394160310,0.0313985,3397.6,3397.5,0.884]
[1718394160513,2.94301,3397.9,3397.5,0.884]
[1718394160693,0.03151726,3397.6,3397.5,0.884]
[1718394160882,2.94301,3397.9,3397.5,0.884]
[1718394161216,0.03153455,3397.6,3397.5,0.884]
[1718394161413,2.94301,3397.9,3397.5,0.884]
[1718394161637,0.03155184,3397.6,3397.5,0.884]
[1718394161819,2.94301,3397.9,3397.5,0.884]
[1718394161994,0.03155184,3397.6,3397.5,0.884]
[1718394162203,2.94301,3397.9,3397.5,0.884]
[1718394162395,0.03155184,3397.6,3397.5,12.16758]
[1718394162595,5.94265,3398.3,3397.7,2.9431]
[1718394162795,5.94265,3398.3,3397.8,0.884]
[1718394163013,0.031732,3398.2,3397.8,0.884]
[1718394164789,0.031732,3398.2,3397.8,3.82707]
[1718394172552,0.031732,3398.2,3398.1,5.88564]
[1718394172838,6.2318,3398.7,3398.2,2.9427]
[1718394173133,6.2318,3398.7,3398.3,0.884]
[1718394173134,3.0,3398.6,3398.3,0.884]
[1718394173626,3.0,3398.6,3398.3,3.82664]
[1718394173807,2.94215,3398.9,3398.4,2.94256]
[1718394174002,4.37559514,3398.9,3398.4,2.94256]
[1718394175100,3.0,3398.8,3398.4,2.94256]
[1718394176033,5.94222,3398.8,3398.2,0.884]
[1718394176335,5.94222,3398.8,3398.2,3.82672]
[1718394176536,5.94222,3398.8,3398.3,2.94264]
[1718394177644,0.02792234,3398.7,3398.3,2.94264]
[1718394178013,5.94222,3398.8,3398.3,2.94264]
[1718394178242,5.94222,3398.8,3398.2,0.884]
[1718394178243,8.8845,3398.8,3398.2,2.94273]
[1718394178541,0.02790185,3398.7,3398.2,2.94273]
[1718394179512,0.02790185,3398.7,3398.3,2.94264]
[1718394179712,5.94222,3398.8,3398.3,2.94264]
[1718394179947,0.02789123,3398.6,3398.3,3.82664]
[1718394180247,5.94222,3398.8,3398.3,2.94264]
[1718394180844,0.02810991,3398.7,3398.3,2.94264]
[1718394181048,0.02810991,3398.7,3398.2,2.9427]
[1718394181250,5.94222,3398.8,3398.2,2.9427]
[1718394181412,0.0280788,3398.6,3398.2,2.9427]
[1718394181613,0.0280788,3398.6,3398.1,3.8268]
[1718394181614,0.02810991,3398.7,3398.1,3.8268]
[1718394181814,0.02810991,3398.7,3397.8,2.94306]
[1718394181815,2.94265,3398.3,3397.8,2.94306]
[1718394182215,0.02795434,3398.2,3397.9,0.884]
[1718394186544,0.02795434,3398.2,3397.5,4.71229]
[1718394186545,0.02795434,3398.2,3397.5,2.94331]
[1718394186783,2.94273,3398.2,3397.5,3.82731]
[1718394187094,0.02781908,3398.1,3397.5,3.82731]
[1718394187384,2.97065908,3398.1,3397.5,3.82731]
[1718394187583,2.943,3397.9,3397.4,2.94342]
[1718394187745,2.943,3397.9,3397.4,3.82742]
[1718394188080,0.02766788,3397.8,3397.4,3.82742]
[1718394189579,0.02766788,3397.8,3397.6,0.884]
[1718394190067,2.94234,3398.7,3397.8,6.4222]
[1718394190270,2.94248,3398.5,3398.1,0.884]
[1718394190686,3.0,3398.4,3398.1,0.884]
[1718394191088,3.02764135,3398.4,3398.1,0.884]
[1718394192078,3.02764135,3398.4,3398.1,0.87899563]
[1718394192815,5.97021135,3398.4,3398.1,0.87899563]
[1718394193026,5.97021135,3398.4,3397.9,0.884]
[1718394193385,5.97021135,3398.4,3397.9,3.82697]
[1718394194596,3.02764135,3398.4,3397.9,3.82697]
[1718394194787,3.02764135,3398.4,3398.1,0.884]
[1718394199093,3.02764135,3398.4,3397.9,3.82691]
[1718394199525,3.02764135,3398.4,3398.0,2.94289]
[1718394199704,0.02764135,3398.4,3398.0,2.94289]
[1718394202630,3.0,3398.5,3398.0,2.94289]
[1718394202783,0.02768429,3398.3,3398.0,2.94289]
[1718394202984,3.0,3398.5,3398.0,2.94289]
[1718394203226,0.02755665,3398.3,3398.0,2.94289]
[1718394203438,0.02759,3398.4,3398.0,2.94289]
[1718394203590,0.02755665,3398.3,3398.0,2.94289]
[1718394204022,5.94248,3398.5,3397.9,3.82697]
[1718394204319,0.02755665,3398.3,3397.9,3.82697]
[1718394205320,2.94256,3398.4,3397.9,3.82697]
[1718394209324,2.94256,3398.4,3397.9,2.94297]
[1718394209523,2.94256,3398.4,3397.9,3.82697]
[1718394210622,5.9425,3398.5,3397.9,2.94297]
[1718394210825,2.94257,3398.4,3397.9,2.94297]
[1718394210982,2.94257,3398.4,3398.0,0.884]
[1718394211489,5.94249,3398.5,3398.0,3.82689]
[1718394217190,2.94257,3398.4,3398.0,0.884]
[1718394217383,5.9425,3398.5,3398.0,3.82689]
[1718394218034,2.94256,3398.4,3398.0,0.884]
[1718394218396,2.943,3397.9,3397.4,2.94341]
[1718394218607,2.94305,3397.9,3397.4,2.94341]
[1718394218819,2.94305,3397.9,3397.4,3.82741]
[1718394220198,2.94305,3397.9,3397.6,0.884]
[1718394220398,2.94293,3398.0,3397.6,0.884]
[1718394221030,2.94293,3398.0,3397.8,0.884]
[1718394221203,2.94283,3398.1,3397.8,0.884]
[1718394222733,2.94275,3398.2,3397.8,0.884]
[1718394222936,4.37619514,3398.2,3397.8,0.884]
[1718394223099,5.94248,3398.5,3398.0,3.82684]
[1718394223299,2.1372363,3398.4,3398.0,3.82684]
[1718394224726,2.1372363,3398.4,3398.2,0.884]
[1718394224926,5.94248,3398.5,3398.2,0.884]
[1718394225325,5.94248,3398.5,3398.0,2.94284]
[1718394225543,5.94248,3398.5,3398.1,0.884]
[1718394225708,2.13717389,3398.4,3398.1,0.884]
[1718394226233,2.13717389,3398.4,3398.0,2.94284]
[1718394226435,2.13717389,3398.4,3398.1,0.884]
[1718394227065,5.07977389,3398.4,3397.9,2.94298]
[1718394227215,2.9426,3398.4,3397.9,3.82698]
[1718394228057,6.45135985,3398.5,3398.0,2.9429]
[1718394228350,2.13721546,3398.4,3398.0,2.9429]
[1718394230237,5.9425,3398.5,3398.0,3.8269]
[1718394230852,2.1371469,3398.4,3398.0,3.8269]
[1718394232725,5.0797069,3398.4,3397.9,3.82697]
[1718394232930,2.94256,3398.4,3397.9,3.82697]
[1718394233253,2.13723094,3398.3,3397.9,3.82697]
[1718394233429,5.9425,3398.5,3397.9,3.82697]
[1718394233746,2.13721181,3398.4,3397.9,3.82697]
[1718394234252,2.13721181,3398.4,3397.9,2.94297]
[1718394234553,2.13721181,3398.4,3397.9,3.82697]
[1718394236416,5.07978181,3398.4,3397.9,2.94297]
[1718394236616,2.13721181,3398.3,3397.9,2.94297]
[1718394240151,5.07985181,3398.3,3397.9,3.82697]
[1718394240316,2.94264,3398.3,3397.9,3.82697]
[1718394241028,2.94258,3398.4,3397.9,3.82697]
[1718394241232,5.07986286,3398.3,3397.8,2.94307]
[1718394241449,2.94264,3398.3,3397.8,2.94307]
[1718394241617,2.94274,3398.2,3397.7,9.00385]
[1718394241812,2.94274,3398.2,3397.8,0.884]
[1718394242050,2.94274,3398.2,3397.7,9.00385]
[1718394242352,2.94274,3398.2,3397.8,0.884]
[1718394244263,2.94265,3398.3,3398.0,0.884]
[1718394244434,2.94258,3398.4,3398.0,0.884]
[1718394244632,2.94264,3398.3,3398.0,0.884]
[1718394245552,2.13726647,3398.2,3398.0,0.884]
[1718394246118,2.94264,3398.3,3398.0,0.884]
[1718394246315,2.13723637,3398.2,3398.0,0.884]
[1718394247959,2.13723637,3398.2,3397.8,3.82705]
[1718394249758,2.94257,3398.4,3397.9,2.94299]
[1718394250058,3.0,3398.5,3398.2,0.884]
[1718394250362,3.0,3398.6,3398.2,0.884]
[1718394250660,2.13708811,3398.5,3398.2,3.82672]
[1718394250834,5.13708811,3398.5,3398.2,3.82672]
[1718394251017,6.43091467,3399.0,3398.4,3.82656]
[1718394251018,9.37296467,3399.0,3398.4,3.82656]
[1718394251222,2.64586106,3398.9,3398.4,3.82656]
[1718394251421,2.13706168,3398.8,3398.4,3.82656]
[1718394252236,2.13706168,3398.8,3398.2,6.2424]
[1718394252237,2.13706168,3398.8,3398.6,3.82633]
[1718394252438,0.21921467,3399.0,3398.6,3.82633]
[1718394252756,2.13691605,3398.9,3398.6,3.82633]
[1718394255668,3.21921467,3399.0,3398.6,3.82633]
[1718394259360,6.16125467,3399.0,3398.6,3.82633]
[1718394259550,6.16125467,3399.0,3398.6,0.884]
[1718394260882,3.21921467,3399.0,3398.6,0.884]
[1718394262702,6.16127467,3399.0,3398.6,0.884]
[1718394263059,6.16127467,3399.0,3398.5,2.94245]
[1718394264463,2.94213,3398.9,3398.4,3.82653]
[1718394270408,2.94213,3398.9,3398.4,2.94253]
[1718394270608,2.9423,3398.7,3398.2,9.18511]
[1718394270775,2.9423,3398.7,3398.2,10.06911]
[1718394271587,2.94238,3398.6,3398.2,10.06911]
[1718394271992,2.94238,3398.6,3398.1,2.94281]
[1718394272197,2.94247,3398.5,3398.1,2.94281]
[1718394272376,2.94247,3398.5,3398.2,0.884]
[1718394275032,2.94247,3398.5,3398.1,0.884]
[1718394275180,2.94247,3398.5,3398.3,0.884]
[1718394275499,2.94241,3398.6,3398.3,0.884]
[1718394275701,2.94247,3398.5,3398.3,0.884]
[1718394276420,2.94241,3398.6,3398.3,0.884]
[1718394279288,2.94241,3398.6,3398.1,2.94281]
[1718394279603,2.94241,3398.6,3398.3,0.884]
[1718394281518,2.94231,3398.7,3398.3,0.884]
[1718394285325,2.94223,3398.8,3398.4,5.9656]
[1718394285531,0.50880898,3398.9,3398.5,0.884]
[1718394285689,0.50880898,3398.9,3398.7,0.884]
[1718394286018,5.94196,3399.1,3398.7,0.884]
[1718394286186,6.45071057,3399.1,3398.7,0.884]
[1718394286790,5.94196,3399.1,3398.7,0.884]
[1718394288496,3.0,3399.1,3398.8,2.94215]
[1718394288692,3.50875374,3399.3,3398.8,2.94215]
[1718394288899,2.13673687,3399.2,3398.8,2.94215]
[1718394290027,3.50875374,3399.3,3398.8,2.94215]
[1718394290250,3.50873315,3399.3,3398.8,2.94215]
[1718394290395,6.45051315,3399.3,3398.8,2.94215]
[1718394290598,2.13670804,3399.2,3398.7,2.94228]
[1718394290898,2.64546463,3399.2,3398.7,2.94228]
[1718394291135,3.0,3399.1,3398.7,2.94227]
[1718394291332,3.0,3399.2,3398.7,2.94227]
[1718394291633,3.0,3399.2,3399.1,3.82595]
[1718394291808,3.0,3399.5,3399.1,3.82595]
[1718394292011,0.50870334,3399.7,3399.3,2.94178]
[1718394292209,2.94119,3400.0,3399.6,0.884]
[1718394292409,4.37463514,3400.0,3399.5,2.9416]
[1718394292833,4.37463514,3400.0,3399.6,0.884]
[1718394293548,0.55,3399.9,3399.5,2.94158]
[1718394294002,0.55,3399.9,3399.6,0.884]
[1718394294202,0.55,3399.9,3399.6,3.8255]
[1718394294605,3.0,3400.0,3399.8,0.884]
[1718394294841,0.005,3400.2,3399.8,0.884]
[1718394294842,3.005,3400.2,3399.8,3.82527]
[1718394295027,0.005,3400.2,3399.8,3.82527]
[1718394295332,3.0,3400.1,3399.8,3.82527]
[1718394295520,0.005,3400.2,3399.8,3.82527]
[1718394296442,0.555,3400.2,3399.8,3.82527]
[1718394299141,0.555,3400.2,3399.8,0.884]
[1718394299532,3.496,3400.2,3399.7,2.94141]
[1718394299842,3.0,3400.1,3399.7,2.94141]
[1718394300403,3.0,3400.1,3398.9,6.3589]
[1718394300404,2.94135,3399.8,3398.9,6.3589]
[1718394300649,2.94161,3399.5,3399.0,2.94202]
[1718394300944,4.37489514,3399.7,3399.1,2.94195]
[1718394300945,2.94153,3399.6,3399.1,2.94195]
[1718394301142,0.55,3399.5,3398.9,9.30094]
[1718394301356,3.49168,3399.5,3399.1,0.884]
[1718394301510,0.55,3399.5,3399.1,3.82595]
[1718394302353,0.55,3399.5,3399.3,0.884]
[1718394302820,2.94136,3399.8,3399.3,3.82577]
[1718394303022,3.0,3400.1,3399.5,9.73456]
[1718394303217,3.0,3400.1,3399.8,2.94133]
[1718394303424,3.0,3400.3,3400.0,0.884]
[1718394303640,3.0,3400.4,3400.0,6.793]
[1718394304342,2.94076,3400.5,3400.0,9.73416]
[1718394304649,0.005,3400.6,3400.1,6.47534926]
[1718394305722,0.005,3400.6,3400.1,7.35934926]
[1718394305946,0.005,3400.6,3400.1,2.94108]
[1718394306144,0.005,3400.6,3400.1,0.884]
[1718394306145,2.94074,3400.5,3400.1,0.884]
[1718394306758,2.94083,3400.4,3400.1,0.884]
[1718394307521,2.94092,3400.3,3399.9,2.94125]